[Event "German Rapid Championship 2022"]
[Site "Goettingen"]
[Date "2022.09.24"]
[Round "3.11"]
[White "Laux, Dominik"]
[Black "Kersten, Uwe"]
[Result "1-0"]
[ECO "A40"]
[WhiteElo "2248"]
[BlackElo "2261"]
[Annotator "TA"]
[PlyCount "65"]
[EventDate "2022.09.24"]
[EventType "swiss"]
[EventCountry "GER"]
[SourceTitle "playchess.com"]
[Source "ChessBase"]
[SourceQuality "1"]
[TimeControl "900+10"]

{[%evp 12,65,4,-17,16,18,28,27,3,25,0,15,20,31,23,16,0,9,29,8,5,0,25,15,31,22,20,3,3,5,5,0,0,0,0,0,133,121,109,113,269,287,291,284,285,278,1222,1212,1284,1241,1958,1937,3062,2996,2319,2251]} 1. d4 {[%emt 0:00:04]} e6 {[%emt 0:00:10]} 2. Nf3 {[%emt 0:00:11]} c5 {[%emt 0:00:11]} 3. c4 {[%emt 0:00:44]} Nf6 {[%emt 0:00:11]} 4. Nc3 {[%emt 0:00:26]} cxd4 {[%emt 0:00:15]} 5. Nxd4 {[%emt 0:00:08]} a6 {[%emt 0:00:02]} 6. g3 {[%emt 0:00:43]} Qc7 {[%emt 0:00:02]} 7. Qd3 {[%emt 0:00:20]} b6 {[%emt 0:00:03] A32: Symmetrical English: 2 Nf3 Nf6 3 d4 cxd4 4 Nxd4 e6.} 8. Bg2 {[%emt 0:00:13]} Bb7 {[%emt 0:00:01]} 9. O-O {[%emt 0:00:28]} Bxg2 {[%emt 0:00:17] White has an edge.} 10. Kxg2 {[%emt 0:00:03]} Nc6 {[%emt 0:00:28]} 11. b3 {[%emt 0:01:18]} Nxd4 {[%emt 0:01:33]} 12. Qxd4 {[%emt 0:00:04] [#]} b5 $146 {[%emt 0:01:04]} ({Predecessor:} 12... Qc6+ 13. f3 Be7 14. Bb2 O-O 15. Rac1 Rfd8 16. Rfd1 Qb7 17. e4 d6 18. a4 Nd7 {0-1 (62) Schroll,G (2385)-Bischoff,K (2515) Austria 1994}) 13. cxb5 {[%emt 0:00:30] Active counter play!} axb5 {[%emt 0:00:02]} 14. Bg5 {[%emt 0:01:19]} Be7 {[%emt 0:00:50]} 15. e4 {[%emt 0:01:29]} Qb7 {[%emt 0:00:13]} 16. Kg1 {[%emt 0:00:55]} b4 {[%emt 0:01:13]} 17. e5 {[%emt 0:00:26]} Nd5 {[%emt 0:03:56]} 18. Nxd5 {[%emt 0:00:25]} Qxd5 {[%emt 0:00:02]} 19. Qf4 $36 {[%emt 0:00:49][%mdl 2048] Threatens to win with Bxe7. White is more active.} Bxg5 {[%emt 0:01:37]} 20. Qxg5 {[%emt 0:00:01]} O-O {[%emt 0:00:02]} 21. Rfd1 {[%emt 0:00:06][%cal Bf1d1,Bd1d4,Bd4b4,Bb4b7][%mdl 32]} Qb5 {[%emt 0:00:07]} 22. Qf4 {[%emt 0:01:18]} Ra5 {[%emt 0:00:36]} 23. Rd4 {[%emt 0:00:26]} Qxe5 {[%emt 0:00:38]} (23... Rb8 $11 {remains equal.}) 24. Qxe5 $16 {[%emt 0:00:03]} Rxe5 {[%emt 0:00:01]} 25. Rxb4 $11 {[%emt 0:00:01][%mdl 4096] Endgame KRR-KRR} Rc8 $2 {[%emt 0:01:12] A mistake that costs the game.} (25... Ra5 $16) 26. a4 $18 {[%emt 0:00:19]} Ra5 {[%emt 0:00:48] [#]} 27. Rb7 {[%emt 0:00:08] Prevents Ra7. Hoping for b4.} g5 {[%emt 0:01:01] [#]} 28. b4 $1 {[%emt 0:03:39]} (28. Rxd7 Rb8 $16) 28... Rd5 {[%emt 0:00:01]} (28... Ra6 29. a5 (29. Rxd7 Rb8 $18) 29... Rca8 30. Rxd7 Rb8) 29. a5 {[%emt 0:00:13] White is clearly winning.} Rd2 {[%emt 0:01:34]} 30. a6 {[%emt 0:00:04]} Rcc2 {[%emt 0:00:03]} 31. a7 {[%emt 0:00:02]} Rxf2 {[%emt 0:00:13]} 32. a8=Q+ {[%emt 0:00:03]} Kg7 {[%emt 0:00:02]} 33. Rxd7 {[%emt 0:00:04] Weighted Error Value: White=0.04 (flawless) /Black=0.24 (precise)} 1-0

[Event "German Rapid Championship 2022"]
[Site "Goettingen"]
[Date "2022.09.24"]
[Round "3.12"]
[White "Hoepfl, Thomas"]
[Black "Karsay, Pascal"]
[Result "1-0"]
[ECO "C88"]
[WhiteElo "2279"]
[BlackElo "2269"]
[Annotator "TA"]
[PlyCount "81"]
[EventDate "2022.09.24"]
[EventType "swiss"]
[EventCountry "GER"]
[SourceTitle "playchess.com"]
[Source "ChessBase"]
[SourceQuality "1"]
[TimeControl "900+10"]

{[%evp 17,81,33,51,44,46,52,56,53,49,20,12,22,50,19,21,27,10,27,125,118,176,134,129,137,128,0,0,0,0,-7,-15,-16,-14,-53,-6,-11,-11,-10,-7,-10,-10,-12,0,0,47,44,237,77,79,74,248,241,230,175,633,625,1387,1387,1387,1387,1305,921,29969,791,563,538]} 1. e4 {[%emt 0:00:03]} e5 {[%emt 0:00:01]} 2. Nf3 {[%emt 0:00:01]} Nc6 {[%emt 0:00:02]} 3. Bb5 {[%emt 0:00:01]} a6 {[%emt 0:00:01]} 4. Ba4 {[%emt 0:00:01]} Nf6 {[%emt 0:00:01]} 5. O-O {[%emt 0:00:02]} Be7 {[%emt 0:00:01]} 6. Re1 {[%emt 0:00:01]} b5 {[%emt 0:00:03]} 7. Bb3 {[%emt 0:00:02]} O-O {[%emt 0:00:02]} 8. a4 {[%emt 0:00:17] is cutting edge theory.} Bb7 {[%emt 0:00:03]} 9. d3 {[%emt 0:00:07]} d5 {[%emt 0:00:01]} 10. exd5 {[%emt 0:01:56] C88: Closed Ruy Lopez: Anti-Marshall Systems.} Nxd5 {[%emt 0:00:02]} 11. axb5 {[%emt 0:00:08]} (11. Nxe5 {looks sharper.} Nd4 12. c3 Nxb3 13. Qxb3 Bd6 14. axb5 axb5 15. Rxa8 Qxa8 16. Qxb5 Nb6 17. f3) 11... axb5 {[%emt 0:00:01]} 12. Rxa8 {[%emt 0:00:01] White is slightly better.} Bxa8 {[%emt 0:00:02]} 13. Nc3 {[%emt 0:00:33]} Nxc3 {[%emt 0:00:20]} 14. bxc3 {[%emt 0:00:02] [#]} Bd6 $146 {[%emt 0:02:18]} ({Predecessor:} 14... b4 15. Bd2 bxc3 16. Bxc3 Bc5 17. Bxe5 Nxe5 18. Rxe5 Qd6 19. Qe2 Bxf3 20. gxf3 Qg6+ {½-½ (31) Zapata,A (2422)-Huston,G (2078) Charlotte 2021}) 15. Ng5 {[%emt 0:00:44]} h6 {[%emt 0:00:27]} 16. Ne4 {[%emt 0:00:03]} Na5 $1 {[%emt 0:00:27]} 17. Ba2 {[%emt 0:01:45]} c5 {[%emt 0:00:36]} (17... Bxe4 $11 {remains equal.} 18. Rxe4 Qf6) 18. Qg4 $16 {[%emt 0:00:47] White threatens Bxh6 and mate. White is more active.} Kh8 {[%emt 0:00:54]} (18... Bxe4 $16 19. dxe4 (19. Rxe4 c4 $16) 19... h5 20. Qxh5 c4) 19. Qh5 {[%emt 0:00:38][%cal Oc1h6] Bxh6! is the strong threat.} Bxe4 {[%emt 0:00:27]} 20. Rxe4 {[%emt 0:00:13][%cal Oc1h6] Hoping for Bxh6!} Qf6 {[%emt 0:00:25][%cal Oc5c4]} 21. h4 {[%emt 0:03:01]} (21. Bd5 $16) 21... c4 $11 {[%emt 0:01:01]} 22. dxc4 {[%emt 0:00:10]} bxc4 {[%emt 0:00:40]} 23. Bxc4 {[%emt 0:00:32]} Nxc4 {[%emt 0:00:01]} 24. Rxc4 {[%emt 0:00:02]} Ra8 {[%emt 0:00:56] aiming for ...Ra1.} 25. Be3 {[%emt 0:00:52]} Qe6 {[%emt 0:01:12]} (25... Ra1+ $15 26. Kh2 Qe6) 26. Qe2 $1 {[%emt 0:02:03]} Ra1+ {[%emt 0:00:24][%mdl 1024] Black has compensation.} 27. Kh2 {[%emt 0:00:01]} f5 {[%emt 0:00:21]} 28. Bc5 {[%emt 0:01:02]} Bc7 {[%emt 0:01:41] White must now prevent ...Qa6.} 29. g3 $1 {[%emt 0:00:24]} Qd5 {[%emt 0:01:38][%csl Ga1][%cal Rd5h1]} (29... Qc6 $5 30. f3 $8 Qb5 $11) 30. f3 {[%emt 0:00:02]} Rd1 {[%emt 0:00:34]} (30... Qc6 $11) 31. Be3 $1 $14 {[%emt 0:00:34]} Bb6 {[%emt 0:00:38]} 32. Rc8+ $2 {[%emt 0:00:22]} (32. Bxb6 $2 Rd2 33. Rc8+ Kh7 $19) (32. Bd4 $1 $18 {is the precise move to win.}) 32... Kh7 $16 {[%emt 0:00:01] [#] And now ...Bxe3 would win.} 33. Bd4 {[%emt 0:00:15]} ({Don't go for} 33. Bxb6 $2 Rd2 34. Qxd2 Qxd2+ 35. Kh1 Qe1+ 36. Kg2 e4 $19) 33... Rxd4 {[%emt 0:01:25]} (33... Rc1 $16 34. Qxe5 (34. Bxb6 $2 Qa2 $19) 34... Qxe5 35. Bxe5 Rxc2+ 36. Kh3 Re2) 34. cxd4 $18 {[%emt 0:00:02]} Qxd4 $16 {[%emt 0:00:05][%mdl 4096] Endgame ( -> ...Qg1+). KQR-KQB} 35. Qg2 {[%emt 0:00:42] Against Qg1+} e4 $2 {[%emt 0:00:50] [#]} (35... h5 36. Qf1 g6) 36. fxe4 $1 $18 {[%emt 0:00:01]} fxe4 {[%emt 0:00:01]} 37. Re8 {[%emt 0:00:02]} e3 {[%emt 0:00:31]} 38. Qe4+ {[%emt 0:00:02]} Qxe4 {[%emt 0:00:02]} 39. Rxe4 {[%emt 0:00:01]} Kg6 {[%emt 0:00:05]} 40. Kg2 {[%emt 0:00:02]} (40. Re6+ $142 Kf5 41. Rxb6 e2 42. Rb1 Ke4 43. Kg2 Ke3 44. Re1 Kd4 45. Rxe2) 40... Kf5 {[%emt 0:00:00]} 41. Kf3 {[%emt 0:00:02] Weighted Error Value: White=0.23 (precise) /Black=0.80} 1-0

[Event "German Rapid Championship 2022"]
[Site "Goettingen"]
[Date "2022.09.24"]
[Round "3.13"]
[White "Knuedel, Torben"]
[Black "Voigt, Martin"]
[Result "1-0"]
[ECO "B12"]
[WhiteElo "2221"]
[BlackElo "2319"]
[Annotator "TA"]
[PlyCount "85"]
[EventDate "2022.09.24"]
[EventType "swiss"]
[EventCountry "GER"]
[SourceTitle "playchess.com"]
[Source "ChessBase"]
[SourceQuality "1"]
[TimeControl "900+10"]

{[%evp 11,85,25,32,18,37,-5,0,5,5,-14,-15,-16,31,41,168,42,279,279,279,278,278,269,277,270,275,273,271,273,386,383,368,383,587,459,448,450,445,443,575,565,593,589,571,589,585,559,629,614,725,710,731,668,716,703,898,890,1146,1145,1522,1425,1129,777,837,795,754,757,1868,1547,3493,3093,7360,6384,5127,1731,29988,29988]} 1. e4 {[%emt 0:00:02]} c6 {[%emt 0:00:01]} 2. d4 {[%emt 0:00:02]} d5 {[%emt 0:00:01]} 3. f3 {[%emt 0:00:01]} dxe4 {[%emt 0:00:23]} 4. fxe4 {[%emt 0:00:02]} e5 {[%emt 0:00:02]} 5. Nf3 {[%emt 0:00:01]} Bg4 {[%emt 0:00:06]} 6. Bc4 {[%emt 0:00:33]} Nd7 {[%emt 0:00:02]} 7. c3 {[%emt 0:00:08] B12: Caro-Kann: Advance Variation.} b5 {[%emt 0:00:10] Recently 7...Bd6 got a lot of attention.} 8. Bb3 {[%emt 0:01:39]} Ngf6 {[%emt 0:00:13]} 9. O-O {[%emt 0:00:03] The position is equal.} Bd6 {[%emt 0:00:21]} 10. Qe1 {[%emt 0:00:11]} O-O {[%emt 0:00:20]} 11. Bg5 {[%emt 0:00:04]} Bh5 {[%emt 0:00:31] [#]} (11... Bxf3 $11 {was preferrable.} 12. gxf3 c5) 12. Nbd2 $146 {[%emt 0:00:13] And now Nxe5 would win.} ({Predecessor:} 12. Qh4 Bg6 13. Nbd2 Qc7 14. dxe5 Bxe5 15. Nxe5 Qxe5 16. Rae1 h6 17. Nf3 Qc5+ 18. Be3 {1-0 (29) Beerdsen,T (2460)-Miedema,D (2379) Hoogeveen 2018}) 12... c5 {[%emt 0:00:18] White now steadily converts the win.} (12... a5 $14) 13. Bd5 {[%emt 0:00:45]} ({White should play} 13. Nxe5 $18 Nxe5 14. Bxf6 gxf6 15. dxe5 Bxe5 16. Bd5) 13... Rb8 $2 {[%emt 0:00:23]} (13... cxd4 $1 $14 14. Bxa8 (14. cxd4 Rc8 $11) 14... dxc3) 14. dxe5 $18 {[%emt 0:00:25]} Nxe5 {[%emt 0:00:18]} 15. Nxe5 {[%emt 0:00:14]} Bxe5 {[%emt 0:00:03]} 16. Rf5 {[%emt 0:00:05]} Qd6 {[%emt 0:03:41]} 17. Bxf6 {[%emt 0:02:41]} Bxh2+ {[%emt 0:00:02]} 18. Kh1 {[%emt 0:00:01]} Bg6 {[%emt 0:01:28] [#]} 19. Rf3 {[%emt 0:00:59]} Bf4 {[%emt 0:01:26]} (19... gxf6 {was necessary.} 20. g3 f5 21. Kxh2 Rfe8) 20. Qf2 {[%emt 0:03:43]} Bh6 {[%emt 0:02:22]} 21. Bh4 {[%emt 0:00:20]} Rb6 {[%emt 0:00:52]} (21... Rbe8 {was worth a try.} 22. Rf1 Bxd2 23. Qxd2 Kh8) 22. Rf1 {[%emt 0:01:00]} Bxd2 {[%emt 0:02:12]} 23. Qxd2 {[%emt 0:00:23]} h6 {[%emt 0:00:04]} 24. Qf4 {[%emt 0:00:11]} Qxf4 {[%emt 0:00:58]} 25. Rxf4 {[%emt 0:00:02]} Kh7 {[%emt 0:01:19]} 26. Be7 {[%emt 0:00:44]} Rc8 {[%emt 0:00:26]} 27. Bxf7 {[%emt 0:00:19]} Bxf7 {[%emt 0:00:22]} 28. Rxf7 {[%emt 0:00:02]} Rg6 {[%emt 0:00:01]} 29. e5 {[%emt 0:00:26]} c4 {[%emt 0:00:20]} 30. Bd6 {[%emt 0:00:02]} a6 {[%emt 0:00:06]} 31. Rc7 {[%emt 0:00:24]} Re8 {[%emt 0:00:03]} 32. Rff7 {[%emt 0:00:25]} Ree6 {[%emt 0:00:03]} 33. Rce7 {[%emt 0:00:08]} Rxe7 {[%emt 0:00:26]} 34. Rxe7 {[%emt 0:00:02][%mdl 4096] Endgame KRB-KR} Rg4 {[%emt 0:00:01]} 35. Bc5 {[%emt 0:01:45]} Re4 {[%emt 0:00:18]} 36. Bd4 {[%emt 0:00:02]} Kg6 {[%emt 0:00:01]} 37. Re6+ {[%emt 0:00:12]} Kf5 {[%emt 0:00:02]} 38. Rxa6 {[%emt 0:00:04]} g6 {[%emt 0:00:30]} 39. Rb6 {[%emt 0:00:15]} Re2 {[%emt 0:00:03]} 40. Rxb5 {[%emt 0:00:09]} Kg4 {[%emt 0:00:03]} 41. Kh2 {[%emt 0:00:01] [#] White threatens a4 and mate.} h5 {[%emt 0:00:01]} 42. e6 {[%emt 0:00:57]} h4 {[%emt 0:00:20]} 43. Re5 {[%emt 0:00:14] Weighted Error Value: White=0.23 (precise) /Black=0.58} 1-0

[Event "German Rapid Championship 2022"]
[Site "Goettingen"]
[Date "2022.09.24"]
[Round "4.1"]
[White "Bluebaum, Matthias"]
[Black "Poetsch, Hagen"]
[Result "1-0"]
[ECO "E43"]
[WhiteElo "2647"]
[BlackElo "2491"]
[Annotator "TA"]
[PlyCount "53"]
[EventDate "2022.09.24"]
[EventType "swiss"]
[EventCountry "GER"]
[SourceTitle "playchess.com"]
[Source "ChessBase"]
[SourceQuality "1"]
[TimeControl "900+10"]

{[%evp 17,53,28,39,39,51,3,31,6,33,0,138,130,128,133,128,57,74,59,205,206,505,33,32,-20,0,0,267,273,262,226,522,516,29976,12835,3512,3083,29990,29991]} 1. d4 {[%emt 0:00:02]} Nf6 {[%emt 0:00:02]} 2. c4 {[%emt 0:00:01]} e6 {[%emt 0:00:03]} 3. Nc3 {[%emt 0:00:02]} Bb4 {[%emt 0:00:01]} 4. e3 {[%emt 0:00:01]} b6 {[%emt 0:00:05]} 5. Bd3 {[%emt 0:00:06]} Bb7 {[%emt 0:00:02]} 6. Nf3 {[%emt 0:00:01]} O-O {[%emt 0:00:09]} 7. O-O {[%emt 0:00:03]} Bxc3 {[%emt 0:00:02]} 8. bxc3 {[%emt 0:00:01]} d6 {[%emt 0:00:02]} 9. Nd2 {[%emt 0:00:52]} Nbd7 {[%emt 0:00:07]} 10. e4 {[%emt 0:00:06] E43: Nimzo-Indian: Rubinstein: 4...b6.} e5 {[%emt 0:00:19]} 11. f4 {[%emt 0:00:40]} (11. Re1 $14) 11... Qe7 {[%emt 0:00:32]} 12. Qf3 {[%emt 0:00:38] White is slightly better.} Rfe8 {[%emt 0:01:13]} 13. Re1 {[%emt 0:00:43] [#]} exd4 $146 {[%emt 0:03:58]} (13... exf4 $11 {keeps the balance.} 14. Qxf4 Nf8) ({Predecessor:} 13... Nf8 14. fxe5 dxe5 15. d5 Ng6 16. Nb3 c6 17. a4 Rac8 18. Ba3 Qd7 19. Bf1 Ba6 {½-½ (28) Taras,I-Kurpnieks,V (2070) ICCF email 2005}) 14. cxd4 $16 {[%emt 0:00:28]} d5 {[%emt 0:00:19]} 15. cxd5 {[%emt 0:01:31]} Nxd5 {[%emt 0:00:04]} 16. Bb2 {[%emt 0:02:09]} (16. e5 $1 $16) 16... Qb4 $14 {[%emt 0:01:21][%csl LRb2,LRd2]} 17. Nb3 $1 {[%emt 0:01:54] Strongly threatening Qg3.} ({Stronger than} 17. exd5 Qxb2 18. Nb3 Rxe1+ 19. Rxe1 Qa3 $17) 17... f5 {[%emt 0:00:39]} ({Black should try} 17... a5 $1 $14) 18. e5 $18 {[%emt 0:00:38][%cal Od3a6] aiming for Ba6!} g6 $2 {[%emt 0:01:04] [#]} (18... Rad8 19. Bxf5 Nf8) 19. Rac1 $2 {[%emt 0:02:01]} (19. Ba6 $1 $18 {[%cal Ra6b7][%mdl 512]} Bc6 (19... Bxa6 20. Qxd5+) 20. Rec1) 19... Nf8 $14 {[%emt 0:01:22]} 20. g4 {[%emt 0:01:26]} ({White should play} 20. g3 $14) 20... Ne6 {[%emt 0:02:13]} 21. gxf5 {[%emt 0:00:04]} Ndxf4 {[%emt 0:00:11][%mdl 8192] Pair of Knights!} (21... gxf5 $11 22. Bxf5 Kh8) 22. Qxb7 $18 {[%emt 0:01:07]} Nxd3 {[%emt 0:00:03]} 23. fxe6 {[%emt 0:00:12][%cal Ob2a3] Threatens to win with Ba3! Dancing on a razor blade.} Nxb2 {[%emt 0:02:12]} (23... Nxe1 {is a better defense.} 24. Bc3 (24. Qxc7 Nf3+ 25. Kh1 Ng5 $17) (24. Rxc7 Qf8 $16) 24... Qe7) 24. Rf1 {[%emt 0:01:19]} Rf8 {[%emt 0:01:39]} (24... Rab8 $18 25. Qg2 Rbc8 26. Qxb2 Rxe6) 25. Rxc7 {[%emt 0:00:30]} Rxf1+ {[%emt 0:00:12]} 26. Kxf1 {[%emt 0:00:02] Threatening mate with Rg7+.} Rf8+ {[%emt 0:00:13]} 27. Kg2 {[%emt 0:00:42] Weighted Error Value: White=0.56/Black=1.40} 1-0

[Event "German Rapid Championship 2022"]
[Site "Goettingen"]
[Date "2022.09.24"]
[Round "4.2"]
[White "Lubbe, Nikolas"]
[Black "Krastev, Alexander"]
[Result "0-1"]
[ECO "A61"]
[WhiteElo "2479"]
[BlackElo "2431"]
[Annotator "TA"]
[PlyCount "96"]
[EventDate "2022.09.24"]
[EventType "swiss"]
[EventCountry "GER"]
[SourceTitle "playchess.com"]
[Source "ChessBase"]
[SourceQuality "1"]
[TimeControl "900+10"]

{[%evp 11,96,46,51,22,21,14,32,0,13,16,19,38,26,32,28,0,14,0,0,-20,-27,-36,-29,-38,-36,-27,-27,-37,-15,-14,-13,-18,-13,-25,-22,-101,-93,-100,-109,-168,-128,-219,-204,-231,-193,-406,-393,-387,-387,-393,-393,-412,-209,-187,-60,-358,-299,-414,-380,-450,-477,-1164,-541,-527,-527,-685,-681,-666,-596,-1419,-1026,-5072,-861,-989,-955,-845,-833,-805,-561,-561,-550,-5957,-5414,-29989,-29990,-29990,-29991]} 1. d4 {[%emt 0:00:01]} Nf6 {[%emt 0:00:01]} 2. Nf3 {[%emt 0:00:07]} e6 {[%emt 0:00:02]} 3. c4 {[%emt 0:00:04]} c5 {[%emt 0:00:01]} 4. d5 {[%emt 0:00:07]} d6 {[%emt 0:00:01]} 5. Nc3 {[%emt 0:00:14]} exd5 {[%emt 0:00:02]} 6. cxd5 {[%emt 0:00:01]} g6 {[%emt 0:00:01]} 7. e3 {[%emt 0:00:03] A61: Modern Benoni: Nf3 without early e4.} Bg7 {[%emt 0:00:13]} 8. Be2 {[%emt 0:00:05]} O-O {[%emt 0:00:03]} 9. O-O {[%emt 0:00:03] White is slightly better.} Re8 {[%emt 0:00:04]} 10. Nd2 {[%emt 0:00:10]} Nbd7 {[%emt 0:00:07]} 11. e4 {[%emt 0:00:18]} a6 {[%emt 0:00:34]} 12. a4 $1 {[%emt 0:00:02] Prevents b5.} Rb8 {[%emt 0:00:02]} 13. Qc2 {[%emt 0:02:40]} Ne5 {[%emt 0:01:18]} 14. h3 {[%emt 0:01:37]} g5 {[%emt 0:00:03] [#]} 15. Nc4 $146 {[%emt 0:00:44]} ({Predecessor:} 15. Nf3 Nxf3+ 16. Bxf3 g4 17. hxg4 Bxg4 18. Qd1 h5 19. Bg5 Qd7 20. Qd3 b5 21. axb5 axb5 22. Bxg4 hxg4 {0-1 (42) Lovkov,R (2435)-Zhou,W (2593) St Petersburg 2009}) 15... Nxc4 {[%emt 0:00:34]} 16. Bxc4 {[%emt 0:00:01]} g4 {[%emt 0:00:04]} 17. hxg4 {[%emt 0:02:56]} Nxg4 {[%emt 0:00:05]} 18. Bf4 {[%emt 0:01:17]} Qf6 {[%emt 0:00:46]} 19. Qd2 {[%emt 0:01:04]} Bd7 {[%emt 0:00:33]} 20. Be2 {[%emt 0:00:54]} Qg6 $40 {[%emt 0:04:20][%mdl 128] Black mounts an attack.} 21. Bxg4 {[%emt 0:02:34]} Bxg4 {[%emt 0:00:03]} 22. f3 {[%emt 0:00:02]} Bd7 {[%emt 0:01:00]} 23. Ne2 {[%emt 0:00:21]} (23. Rfe1 $11 {remains equal.}) 23... b5 $17 {[%emt 0:00:19] Black is more active.} 24. a5 {[%emt 0:00:36]} f5 {[%emt 0:03:05]} 25. exf5 {[%emt 0:00:20]} (25. Ng3 $17 {keeps fighting.}) 25... Bxf5 $19 {[%emt 0:00:02]} 26. Rfe1 {[%emt 0:00:18]} (26. Rf2 $17 {was worth a try.}) 26... Bd3 {[%emt 0:02:48] This bishop pair is nice.} 27. Ng3 {[%emt 0:00:38]} c4 {[%emt 0:00:02] Strongly threatening ...b4.} 28. Ne4 $2 {[%emt 0:00:53]} (28. Rxe8+ Rxe8 29. Re1) 28... Bxe4 {[%emt 0:01:09]} 29. fxe4 {[%emt 0:00:11]} Rxe4 {[%emt 0:00:01]} 30. Rxe4 {[%emt 0:00:22]} Qxe4 {[%emt 0:00:02]} 31. Rd1 {[%emt 0:00:01]} Rd8 {[%emt 0:00:27]} (31... Re8 $142 32. Bxd6 Qg4) 32. Bh6 {[%emt 0:00:29] [#]} Bf6 {[%emt 0:01:09] Inhibits Qg5+.} ({Black should try} 32... Re8 $1 $19 {And now ...Qg4 would win.} 33. Bxg7 Kxg7 34. Qg5+ Qg6) 33. Qf2 $2 {[%emt 0:00:09][%mdl 8192] This costs White the game.} (33. Bg5 $15 Rf8 34. Bxf6 Rxf6 35. Re1) 33... Qg6 {[%emt 0:00:16]} 34. Bf4 {[%emt 0:00:20]} Bg7 {[%emt 0:00:40]} 35. Qb6 {[%emt 0:00:13]} Re8 {[%emt 0:00:35]} ({Weaker is} 35... Qf6 36. Be3 $17) 36. Qxd6 {[%emt 0:00:32]} (36. Rf1 $142 Qd3 37. Qc6) 36... Qxd6 {[%emt 0:00:14]} (36... Qg4 $142 {( -> ...Bd4+)} 37. Rf1 Bd4+ 38. Be3 Bxe3+ 39. Kh1 Bd4) 37. Bxd6 {[%emt 0:00:01]} Bxb2 {[%emt 0:00:02][%mdl 4096] [#] Endgame ...c3 is the strong threat. KRB-KRB} 38. Bf4 {[%emt 0:00:30]} c3 {[%emt 0:00:15][%cal Bc4c3,Bc3c2][%mdl 32]} 39. d6 {[%emt 0:00:08]} c2 {[%emt 0:00:03]} 40. Rf1 {[%emt 0:00:03]} Rd8 {[%emt 0:00:25]} 41. Kf2 {[%emt 0:00:10]} b4 {[%emt 0:00:05]} (41... Rf8 $142 42. Kg3 Be5) 42. Ke2 {[%emt 0:00:03]} b3 {[%emt 0:00:08]} 43. Kd3 {[%emt 0:00:08]} Bf6 {[%emt 0:00:20]} 44. g4 {[%emt 0:00:20]} Be7 {[%emt 0:00:07]} 45. Kc3 {[%emt 0:00:03]} Bxd6 {[%emt 0:00:03]} 46. Bh6 {[%emt 0:00:39]} Rb8 {[%emt 0:00:06]} 47. Kb2 {[%emt 0:00:09]} Be5+ {[%emt 0:00:04]} 48. Kc1 {[%emt 0:00:05]} Rc8 {[%emt 0:00:02] Weighted Error Value: White=0.91/Black=0.61} 0-1